Workbook

Sheet INGRESO DE DATOS
A13: LLENE LA INFORMACIÓN DEL ASEGURADO PROPUESTO:
B15: Nombre del Asegurado Titular: | D15: JOHN DOE
B17: Número de adultos en la póliza: | D17: 2 | F17: Número de niños en la póliza: | H17: 2
B19: Edad del Asegurado Titular: | D19: 32 | F19: Edad del/la cónyuge: | H19: 46
C21: Cotizador por: | D21: NOMBRE DE AGENTE
A25: SELECCIONE EL PRODUCTO PARA VER LA COTIZACIÓN CORRESPONDIENTE:

Sheet Bupa Essential Flex 1
A10: Beneficios: Bupa Essential Flex 1 | D10: Nombre del Asegurado Titular: | F10: =+'INGRESO DE DATOS'!$D$15 -> JOHN DOE
E12: Cotizado por: | F12: =+'INGRESO DE DATOS'!$D$21 -> NOMBRE DE AGENTE
D14: Número de adultos en la póliza: | F14: =+'INGRESO DE DATOS'!$D$17 -> 2 | J14: Edad del Asegurado Titular: | K14: =+'INGRESO DE DATOS'!$D$19 -> 32
D16: Número de niños en la póliza: | F16: =+'INGRESO DE DATOS'!$H$17 -> 2 | J16: Edad del/la conyuge: | K16: =+'INGRESO DE DATOS'!$H$19 -> 46
E18: Fecha de la cotización : | F18: =NOW() -> 2023-02-24T15:12:22.900
J19: FALSE
E20: DEDUCIBLES | G20: PLAN 1 | H20: PLAN 2 | I20: PLAN 3 | J20: PLAN 4 | K20: PLAN 5 | L20: PLAN 6
E21: En el país de residencia | G21: 250 | H21: 500 | I21: 1000 | J21: 2000 | K21: 5000 | L21: 10000
E22: Fuera del país de residencia | G22: 500 | H22: 1000 | I22: 2000 | J22: 4000 | K22: 5000 | L22: 10000
E24: Tarifas Anuales
E25: Prima para Asegurado Titular | G25: =(VLOOKUP($K$14,Tablas!$A$155:$H$221,3,TRUE))*1.1494 -> 2830.9722 | H25: =(VLOOKUP($K$14,Tablas!$A$155:$H$221,4,TRUE))*1.1494 -> 2464.3136 | I25: =(VLOOKUP($K$14,Tablas!$A$155:$H$221,5,TRUE))*1.1494 -> 2244.7782 | J25: =(VLOOKUP($K$14,Tablas!$A$155:$H$221,6,TRUE))*1.1494 -> 1852.8328 | K25: =(VLOOKUP($K$14,Tablas!$A$155:$H$221,7,TRUE))*1.1494 -> 1360.8896 | L25: =(VLOOKUP($K$14,Tablas!$A$155:$H$221,8,TRUE))*1.1494 -> 1149.4
E26: Prima para conyuge | G26: =(IF($F$14=1,0,(VLOOKUP($K$16,Tablas!$A$155:$H$221,3,TRUE))))*1.1494 -> 4328.6404 | H26: =(IF($F$14=1,0,(VLOOKUP($K$16,Tablas!$A$155:$H$221,4,TRUE))))*1.1494 -> 3764.285 | I26: =(IF($F$14=1,0,(VLOOKUP($K$16,Tablas!$A$155:$H$221,5,TRUE))))*1.1494 -> 3434.4072 | J26: =(IF($F$14=1,0,(VLOOKUP($K$16,Tablas!$A$155:$H$221,6,TRUE))))*1.1494 -> 2957.4062 | K26: =(IF($F$14=1,0,(VLOOKUP($K$16,Tablas!$A$155:$H$221,7,TRUE))))*1.1494 -> 2134.4358 | L26: =(IF($F$14=1,0,(VLOOKUP($K$16,Tablas!$A$155:$H$221,8,TRUE))))*1.1494 -> 1801.1098
E27: Prima para hijo (s) | G27: =(IF($F$16=0,0,(VLOOKUP($F$16,Tablas!$A$222:$H$224,3,TRUE))))*1.1494 -> 1930.992 | H27: =(IF($F$16=0,0,(VLOOKUP($F$16,Tablas!$A$222:$H$224,4,TRUE))))*1.1494 -> 1681.5722 | I27: =(IF($F$16=0,0,(VLOOKUP($F$16,Tablas!$A$222:$H$224,5,TRUE))))*1.1494 -> 1533.2996 | J27: =(IF($F$16=0,0,(VLOOKUP($F$16,Tablas!$A$222:$H$224,6,TRUE))))*1.1494 -> 798.833 | K27: =(IF($F$16=0,0,(VLOOKUP($F$16,Tablas!$A$222:$H$224,7,TRUE))))*1.1494 -> 708.0304 | L27: =(IF($F$16=0,0,(VLOOKUP($F$16,Tablas!$A$222:$H$224,8,TRUE))))*1.1494 -> 597.688
E28: Total de Prima neta | G28: =(SUM(G25:G27)) -> 9090.6046 | H28: =(SUM(H25:H27)) -> 7910.1708 | I28: 7212.485 | J28: =(SUM(J25:J27)) -> 5609.072 | K28: =(SUM(K25:K27)) -> 4203.3558 | L28: =(SUM(L25:L27)) -> 3548.1978
E29: Costo Administrativo Anual | G29: =50*1.1494 -> 57.47 | H29: =50*1.1494 -> 57.47 | I29: 57.47 | J29: 57.47 | K29: 57.47 | L29: 57.47
E30: IVA (14.49%) | G30: =(G29)*0% -> 0 | J30: =(J29)*0% -> 0 | K30: =(K29)*0% -> 0 | L30: =(L29)*0% -> 0
E32: TOTAL ANUAL | G32: =SUM(G28:G30) -> 9148.0746 | H32: =SUM(H28:H30) -> 7967.6408 | I32: 7269.955 | J32: =SUM(J28:J30) -> 5666.542 | K32: =SUM(K28:K30) -> 4260.8258 | L32: =SUM(L28:L30) -> 3605.6678
E34: Tarifas Semianuales
E35: Prima para Asegurado Titular | G35: =(VLOOKUP($K$14,Tablas!$A$530:$H$596,3,TRUE))*1.1494 -> 1457.950683 | H35: =(VLOOKUP($K$14,Tablas!$A$530:$H$596,4,TRUE))*1.1494 -> 1269.121504 | I35: =(VLOOKUP($K$14,Tablas!$A$530:$H$596,5,TRUE))*1.1494 -> 1156.060773 | J35: =(VLOOKUP($K$14,Tablas!$A$530:$H$596,6,TRUE))*1.1494 -> 954.208892 | K35: =(VLOOKUP($K$14,Tablas!$A$530:$H$596,7,TRUE))*1.1494 -> 700.858144 | L35: =(VLOOKUP($K$14,Tablas!$A$530:$H$596,8,TRUE))*1.1494 -> 591.941
E36: Prima para conyuge | G36: =(IF($F$14=1,0,(VLOOKUP($K$16,Tablas!$A$530:$H$596,3,TRUE))))*1.1494 -> 2229.249806 | H36: =(IF($F$14=1,0,(VLOOKUP($K$16,Tablas!$A$530:$H$596,4,TRUE))))*1.1494 -> 1938.606775 | I36: =(IF($F$14=1,0,(VLOOKUP($K$16,Tablas!$A$530:$H$596,5,TRUE))))*1.1494 -> 1768.719708 | J36: =(IF($F$14=1,0,(VLOOKUP($K$16,Tablas!$A$530:$H$596,6,TRUE))))*1.1494 -> 1523.064193 | K36: =(IF($F$14=1,0,(VLOOKUP($K$16,Tablas!$A$530:$H$596,7,TRUE))))*1.1494 -> 1099.234437 | L36: =(IF($F$14=1,0,(VLOOKUP($K$16,Tablas!$A$530:$H$596,8,TRUE))))*1.1494 -> 927.571547
E37: Prima para hijo (s) | G37: =(IF($F$16=0,0,(VLOOKUP($F$16,Tablas!$A$597:$H$599,3,TRUE))))*1.1494 -> 994.46088 | H37: =(IF($F$16=0,0,(VLOOKUP($F$16,Tablas!$A$597:$H$599,4,TRUE))))*1.1494 -> 866.009683 | I37: =(IF($F$16=0,0,(VLOOKUP($F$16,Tablas!$A$597:$H$599,5,TRUE))))*1.1494 -> 789.649294 | J37: =(IF($F$16=0,0,(VLOOKUP($F$16,Tablas!$A$597:$H$599,6,TRUE))))*1.1494 -> 411.398995 | K37: =(IF($F$16=0,0,(VLOOKUP($F$16,Tablas!$A$597:$H$599,7,TRUE))))*1.1494 -> 364.635656 | L37: =(IF($F$16=0,0,(VLOOKUP($F$16,Tablas!$A$597:$H$599,8,TRUE))))*1.1494 -> 307.80932
E38: Total de Prima neta | G38: =(SUM(G35:G37)) -> 4681.661369 | H38: =(SUM(H35:H37)) -> 4073.737962 | I38: 3714.429775 | J38: =(SUM(J35:J37)) -> 2888.67208 | K38: =(SUM(K35:K37)) -> 2164.728237 | L38: =(SUM(L35:L37)) -> 1827.321867
E39: Costo Administrativo Anual | G39: =50*1.1494 -> 57.47 | H39: =50*1.1494 -> 57.47 | I39: 57.47 | J39: 57.47 | K39: 57.47 | L39: 57.47
E40: IVA (14.49%) | G40: =(G39)*0% -> 0 | J40: =(J39)*0% -> 0 | K40: =(K39)*0% -> 0 | L40: =(L39)*0% -> 0
E41: TOTAL de primera cuota | G41: =SUM(G38:G40) -> 4739.131369 | H41: =SUM(H38:H40) -> 4131.207962 | I41: 3771.899775 | J41: 2946.14208 | K41: =SUM(K38:K40) -> 2222.198237 | L41: =SUM(L38:L40) -> 1884.791867
E42: Costo de segunda cuota | G42: =G38+G40 -> 4681.661369 | H42: =H38+H40 -> 4073.737962 | I42: 3714.429775 | J42: 2888.67208 | K42: =K38+K40 -> 2164.728237 | L42: =L38+L40 -> 1827.321867
E43: TOTAL ANUAL | G43: =G41+G42 -> 9420.792738 | H43: =H41+H42 -> 8204.945924 | I43: 7486.32955 | J43: =J41+J42 -> 5834.81416 | K43: 4386.926474 | L43: =L41+L42 -> 3712.113734
E45: Tarifas Trimestrales
E46: Prima para Asegurado Titular | G46: =(VLOOKUP($K$14,Tablas!$A$755:$H$821,3,TRUE))*1.1494 -> 739.5914873 | H46: =(VLOOKUP($K$14,Tablas!$A$755:$H$821,4,TRUE))*1.1494 -> 643.801928 | I46: =(VLOOKUP($K$14,Tablas!$A$755:$H$821,5,TRUE))*1.1494 -> 586.4483047 | J46: =(VLOOKUP($K$14,Tablas!$A$755:$H$821,6,TRUE))*1.1494 -> 484.052569 | K46: =(VLOOKUP($K$14,Tablas!$A$755:$H$821,7,TRUE))*1.1494 -> 355.532408 | L46: =(VLOOKUP($K$14,Tablas!$A$755:$H$821,8,TRUE))*1.1494 -> 300.28075
E47: Prima para conyuge | G47: =(IF($F$14=1,0,(VLOOKUP($K$16,Tablas!$A$755:$H$821,3,TRUE))))*1.1494 -> 1130.857304 | H47: =(IF($F$14=1,0,(VLOOKUP($K$16,Tablas!$A$755:$H$821,4,TRUE))))*1.1494 -> 983.4194562 | I47: =(IF($F$14=1,0,(VLOOKUP($K$16,Tablas!$A$755:$H$821,5,TRUE))))*1.1494 -> 897.238881 | J47: =(IF($F$14=1,0,(VLOOKUP($K$16,Tablas!$A$755:$H$821,6,TRUE))))*1.1494 -> 772.6223697 | K47: =(IF($F$14=1,0,(VLOOKUP($K$16,Tablas!$A$755:$H$821,7,TRUE))))*1.1494 -> 557.6213527 | L47: =(IF($F$14=1,0,(VLOOKUP($K$16,Tablas!$A$755:$H$821,8,TRUE))))*1.1494 -> 470.5399352
E48: Prima para hijo (s) | G48: =(IF($F$16=0,0,(VLOOKUP($F$16,Tablas!$A$822:$H$824,3,TRUE))))*1.1494 -> 504.47166 | H48: =(IF($F$16=0,0,(VLOOKUP($F$16,Tablas!$A$822:$H$824,4,TRUE))))*1.1494 -> 439.3107372 | I48: =(IF($F$16=0,0,(VLOOKUP($F$16,Tablas!$A$822:$H$824,5,TRUE))))*1.1494 -> 400.5745205 | J48: =(IF($F$16=0,0,(VLOOKUP($F$16,Tablas!$A$822:$H$824,6,TRUE))))*1.1494 -> 208.6951212 | K48: =(IF($F$16=0,0,(VLOOKUP($F$16,Tablas!$A$822:$H$824,7,TRUE))))*1.1494 -> 184.972942 | L48: =(IF($F$16=0,0,(VLOOKUP($F$16,Tablas!$A$822:$H$824,8,TRUE))))*1.1494 -> 156.14599
E49: Total de Prima neta | G49: =(SUM(G46:G48)) -> 2374.920452 | H49: =(SUM(H46:H48)) -> 2066.532121 | I49: 1884.261706 | J49: =(SUM(J46:J48)) -> 1465.37006 | K49: =(SUM(K46:K48)) -> 1098.126703 | L49: =(SUM(L46:L48)) -> 926.9666752
E50: Costo Administrativo Anual | G50: =50*1.1494 -> 57.47 | H50: =50*1.1494 -> 57.47 | I50: 57.47 | J50: 57.47 | K50: 57.47 | L50: 57.47
E51: IVA (14.49%) | G51: =(G50)*0% -> 0 | H51: =(H50)*0% -> 0 | I51: 0 | J51: =(J50)*0% -> 0 | K51: =(K50)*0% -> 0 | L51: =(L50)*0% -> 0
E53: TOTAL de primera cuota | G53: =SUM(G49:G51) -> 2432.390452 | H53: =SUM(H49:H51) -> 2124.002121 | I53: 1941.731706 | J53: =SUM(J49:J51) -> 1522.84006 | K53: =SUM(K49:K51) -> 1155.596703 | L53: =SUM(L49:L51) -> 984.4366753
E54: Tres (3) cuotas adicionales, cada una de: | G54: =G49+G51 -> 2374.920452 | H54: =H49+H51 -> 2066.532121 | I54: 1884.261706 | J54: =J49+J51 -> 1465.37006 | K54: =K49+K51 -> 1098.126703 | L54: =L49+L51 -> 926.9666752
E55: TOTAL ANUAL | G55: =G53+(G54*3) -> 9557.151807 | H55: =H53+(H54*3) -> 8323.598486 | I55: 7594.516825 | J55: =J53+(J54*3) -> 5918.95024 | K55: 4449.976811 | L55: =L53+(L54*3) -> 3765.336701
E58: Tarifas Mensuales
E59: Prima para Asegurado Titular | G59: =(VLOOKUP($K$14,Tablas!$A$229:$H$295,3,TRUE))*1.1494 -> 250.069211 | H59: =(VLOOKUP($K$14,Tablas!$A$229:$H$295,4,TRUE))*1.1494 -> 217.6810347 | I59: =(VLOOKUP($K$14,Tablas!$A$229:$H$295,5,TRUE))*1.1494 -> 198.288741 | J59: =(VLOOKUP($K$14,Tablas!$A$229:$H$295,6,TRUE))*1.1494 -> 163.6668973 | K59: =(VLOOKUP($K$14,Tablas!$A$229:$H$295,7,TRUE))*1.1494 -> 120.2119147 | L59: =(VLOOKUP($K$14,Tablas!$A$229:$H$295,8,TRUE))*1.1494 -> 101.5303333
E60: Prima para conyuge | G60: =(IF($F$14=1,0,(VLOOKUP($K$16,Tablas!$A$229:$H$295,3,TRUE))))*1.1494 -> 382.3632353 | H60: =(IF($F$14=1,0,(VLOOKUP($K$16,Tablas!$A$229:$H$295,4,TRUE))))*1.1494 -> 332.5118417 | I60: =(IF($F$14=1,0,(VLOOKUP($K$16,Tablas!$A$229:$H$295,5,TRUE))))*1.1494 -> 303.372636 | J60: =(IF($F$14=1,0,(VLOOKUP($K$16,Tablas!$A229:$H$295,6,TRUE))))*1.1494 -> 261.2375477 | K60: =(IF($F$14=1,0,(VLOOKUP($K$16,Tablas!$A$229:$H$295,7,TRUE))))*1.1494 -> 188.541829 | L60: =(IF($F$14=1,0,(VLOOKUP($K$16,Tablas!$A$229:$H$295,8,TRUE))))*1.1494 -> 159.0980323
E61: Prima para hijo (s) | G61: =(IF($F$16=0,0,(VLOOKUP($F$16,Tablas!$A$296:$H$298,3,TRUE))))*1.1494 -> 170.57096 | H61: =(IF($F$16=0,0,(VLOOKUP($F$16,Tablas!$A$296:$H$298,4,TRUE))))*1.1494 -> 148.5388777 | I61: =(IF($F$16=0,0,(VLOOKUP($F$16,Tablas!$A$296:$H$298,5,TRUE))))*1.1494 -> 135.4414647 | J61: =(IF($F$16=0,0,(VLOOKUP($F$16,Tablas!$A$296:$H$298,6,TRUE))))*1.1494 -> 70.56358167 | K61: =(IF($F$16=0,0,(VLOOKUP($F$16,Tablas!$A$296:$H$298,7,TRUE))))*1.1494 -> 62.54268533 | L61: =(IF($F$16=0,0,(VLOOKUP($F$16,Tablas!$A$296:$H$298,8,TRUE))))*1.1494 -> 52.79577333
E62: Total de Prima neta | G62: =SUM(G59:G61) -> 803.0034063 | H62: =SUM(H59:H61) -> 698.731754 | I62: 637.1028417 | J62: =SUM(J59:J61) -> 495.4680267 | K62: =SUM(K59:K61) -> 371.296429 | L62: =SUM(L59:L61) -> 313.424139
E63: Costo Administrativo Anual | G63: =50*1.1494 -> 57.47 | H63: =50*1.1494 -> 57.47 | I63: 57.47 | J63: 57.47 | K63: 57.47 | L63: 57.47
E64: IVA (14.49%) | G64: =(G63)*0% -> 0 | H64: =(H63)*0% -> 0 | I64: 0 | J64: =(J63)*0% -> 0 | K64: =(K63)*0% -> 0 | L64: =(L63)*0% -> 0
E66: TOTAL de primera cuota | G66: =SUM(G62:G64) -> 860.4734063 | H66: =SUM(H62:H64) -> 756.201754 | I66: 694.5728417 | J66: =SUM(J62:J64) -> 552.9380267 | K66: =SUM(K62:K64) -> 428.766429 | L66: =SUM(L62:L64) -> 370.894139
E67: Once (11) cuotas mensuales cada una de: | G67: =G62+G64 -> 803.0034063 | H67: =H62+H64 -> 698.731754 | I67: 637.1028417 | J67: =J62+J64 -> 495.4680267 | K67: =K62+K64 -> 371.296429 | L67: =L62+L64 -> 313.424139
E68: TOTAL ANUAL | G68: =G66+(G67*11) -> 9693.510876 | H68: =H66+(H67*11) -> 8442.251048 | I68: 7702.7041 | J68: =J66+(J67*11) -> 6003.08632 | K68: =K66+(K67*11) -> 4513.027148 | L68: =L66+(L67*11) -> 3818.559668
E71: Tarifas en US$ - Efectivas a partir del 1ro. de enero de 2023
E72: Este presupuesto solamente tiene carácter informativo y en ningún momento expresa compromiso legal para suministrarle cobertura de seguro. La emisión de una póliza de seguro Bupa está sujeta a todas las evaluaciones de riesgo por parte de Bupa y a la recepción de todos los pagos de prima requeridos.

Sheet Bupa Essential Flex 2
A10: Beneficios: Bupa Essential Flex 2
D11: Nombre del Asegurado Titular: | F11: =+'INGRESO DE DATOS'!$D$15 -> JOHN DOE
E13: Cotizado por: | F13: =+'INGRESO DE DATOS'!$D$21 -> NOMBRE DE AGENTE
D15: Número de adultos en la póliza: | F15: =+'INGRESO DE DATOS'!$D$17 -> 2 | J15: Edad del Asegurado Titular: | K15: =+'INGRESO DE DATOS'!$D$19 -> 32
E17: Número de niños en la póliza: | F17: =+'INGRESO DE DATOS'!$H$17 -> 2 | J17: Edad del/la conyuge: | K17: =+'INGRESO DE DATOS'!$H$19 -> 46
E19: Fecha de la cotización: | F19: =NOW() -> 2023-02-24T15:12:22.900
J21: FALSE
E22: DEDUCIBLES | G22: PLAN 1 | H22: PLAN 2 | I22: PLAN 3 | J22: PLAN 4 | K22: PLAN 5 | L22: PLAN 6
E23: En el país de residencia | G23: 250 | H23: 500 | I23: 1000 | J23: 2000 | K23: 5000 | L23: 10000
E24: Fuera del país de residencia | G24: 500 | H24: 1000 | I24: 2000 | J24: 4000 | K24: 5000 | L24: 10000
E26: Tarifas Anuales
E27: Prima para Asegurado Titular | G27: =(VLOOKUP($K$15,Tablas!$A$305:$H$371,3,TRUE))*1.1494 -> 2264.318 | H27: =(VLOOKUP($K$15,Tablas!$A$305:$H$371,4,TRUE))*1.1494 -> 1971.221 | I27: =(VLOOKUP($K$15,Tablas!$A$305:$H$371,5,TRUE))*1.1494 -> 1795.3628 | J27: =(VLOOKUP($K$15,Tablas!$A$305:$H$371,6,TRUE))*1.1494 -> 1481.5766 | K27: =(VLOOKUP($K$15,Tablas!$A$305:$H$371,7,TRUE))*1.1494 -> 1087.3324 | L27: =(VLOOKUP($K$15,Tablas!$A$305:$H$371,8,TRUE))*1.1494 -> 917.2212
E28: Prima para conyuge | G28: =(IF($F$15=1,0,(VLOOKUP($K$17,Tablas!$A$305:$H$371,3,TRUE))))*1.1494 -> 3461.9928 | H28: =(IF($F$15=1,0,(VLOOKUP($K$17,Tablas!$A$305:$H$371,4,TRUE))))*1.1494 -> 3012.5774 | I28: =(IF($F$15=1,0,(VLOOKUP($K$17,Tablas!$A$305:$H$371,5,TRUE))))*1.1494 -> 2748.2154 | J28: =(IF($F$15=1,0,(VLOOKUP($K$17,Tablas!$A$305:$H$371,6,TRUE))))*1.1494 -> 2366.6146 | K28: =(IF($F$15=1,0,(VLOOKUP($K$17,Tablas!$A$305:$H$371,7,TRUE))))*1.1494 -> 1706.859 | L28: =(IF($F$15=1,0,(VLOOKUP($K$17,Tablas!$A$305:$H$371,8,TRUE))))*1.1494 -> 1441.3476
E29: Prima para hijo (s) | G29: =(IF($F$17=0,0,(VLOOKUP($F$17,Tablas!$A$372:$H$374,3,TRUE))))*1.1494 -> 1547.0924 | H29: =(IF($F$17=0,0,(VLOOKUP($F$17,Tablas!$A$372:$H$374,4,TRUE))))*1.1494 -> 1347.0968 | I29: =(IF($F$17=0,0,(VLOOKUP($F$17,Tablas!$A$372:$H$374,5,TRUE))))*1.1494 -> 1226.4098 | J29: =(IF($F$17=0,0,(VLOOKUP($F$17,Tablas!$A$372:$H$374,6,TRUE))))*1.1494 -> 640.2158 | K29: =(IF($F$17=0,0,(VLOOKUP($F$17,Tablas!$A$372:$H$374,7,TRUE))))*1.1494 -> 565.5048 | L29: =(IF($F$17=0,0,(VLOOKUP($F$17,Tablas!$A$372:$H$374,8,TRUE))))*1.1494 -> 479.2998
E30: Total de Prima neta | G30: =(SUM(G27:G29)) -> 7273.4032 | H30: =(SUM(H27:H29)) -> 6330.8952 | I30: 5769.988 | J30: =(SUM(J27:J29)) -> 4488.407 | K30: =(SUM(K27:K29)) -> 3359.6962 | L30: =(SUM(L27:L29)) -> 2837.8686
E31: Costo Administrativo Anual | G31: =50*1.1494 -> 57.47 | H31: =50*1.1494 -> 57.47 | I31: 57.47 | J31: 57.47 | K31: 57.47 | L31: 57.47
E32: IVA (14.49%) | G32: =(G31)*0% -> 0 | H32: =(H31)*0% -> 0 | I32: 0 | J32: =(J31)*0% -> 0 | K32: =(K31)*0% -> 0 | L32: =(L31)*0% -> 0
E34: TOTAL ANUAL | G34: =SUM(G30:G32) -> 7330.8732 | H34: =SUM(H30:H32) -> 6388.3652 | I34: 5827.458 | J34: =SUM(J30:J32) -> 4545.877 | K34: =SUM(K30:K32) -> 3417.1662 | L34: =SUM(L30:L32) -> 2895.3386
E36: Tarifas Semianuales
E37: Prima para Asegurado Titular | G37: =(VLOOKUP($K$15,Tablas!$A$605:$H$671,3,TRUE))*1.1494 -> 1166.12377 | H37: =(VLOOKUP($K$15,Tablas!$A$605:$H$671,4,TRUE))*1.1494 -> 1015.178815 | I37: =(VLOOKUP($K$15,Tablas!$A$605:$H$671,5,TRUE))*1.1494 -> 924.611842 | J37: =(VLOOKUP($K$15,Tablas!$A$605:$H$671,6,TRUE))*1.1494 -> 763.011949 | K37: =(VLOOKUP($K$15,Tablas!$A$605:$H$671,7,TRUE))*1.1494 -> 559.976186 | L37: =(VLOOKUP($K$15,Tablas!$A$605:$H$671,8,TRUE))*1.1494 -> 472.368918
E38: Prima para conyuge | G38: =(IF($F$15=1,0,(VLOOKUP($K$17,Tablas!$A$605:$H$671,3,TRUE))))*1.1494 -> 1782.926292 | H38: =(IF($F$15=1,0,(VLOOKUP($K$17,Tablas!$A$605:$H$671,4,TRUE))))*1.1494 -> 1551.477361 | I38: =(IF($F$15=1,0,(VLOOKUP($K$17,Tablas!$A$605:$H$671,5,TRUE))))*1.1494 -> 1415.330931 | J38: =(IF($F$15=1,0,(VLOOKUP($K$17,Tablas!$A$605:$H$671,6,TRUE))))*1.1494 -> 1218.806519 | K38: =(IF($F$15=1,0,(VLOOKUP($K$17,Tablas!$A$605:$H$671,7,TRUE))))*1.1494 -> 879.032385 | L38: =(IF($F$15=1,0,(VLOOKUP($K$17,Tablas!$A$605:$H$671,8,TRUE))))*1.1494 -> 742.294014
E39: Prima para hijo (s) | G39: =(IF($F$17=0,0,(VLOOKUP($F$17,Tablas!$A$672:$H$674,3,TRUE))))*1.1494 -> 796.752586 | H39: =(IF($F$17=0,0,(VLOOKUP($F$17,Tablas!$A$672:$H$674,4,TRUE))))*1.1494 -> 693.754852 | I39: =(IF($F$17=0,0,(VLOOKUP($F$17,Tablas!$A$672:$H$674,5,TRUE))))*1.1494 -> 631.601047 | J39: =(IF($F$17=0,0,(VLOOKUP($F$17,Tablas!$A$672:$H$674,6,TRUE))))*1.1494 -> 329.711137 | K39: =(IF($F$17=0,0,(VLOOKUP($F$17,Tablas!$A$672:$H$674,7,TRUE))))*1.1494 -> 291.234972 | L39: =(IF($F$17=0,0,(VLOOKUP($F$17,Tablas!$A$672:$H$674,8,TRUE))))*1.1494 -> 246.839397
E40: Total de Prima neta | G40: =(SUM(G37:G39)) -> 3745.802648 | H40: =(SUM(H37:H39)) -> 3260.411028 | I40: 2971.54382 | J40: =(SUM(J37:J39)) -> 2311.529605 | K40: =(SUM(K37:K39)) -> 1730.243543 | L40: =(SUM(L37:L39)) -> 1461.502329
E41: Costo Administrativo Anual | G41: =50*1.1494 -> 57.47 | H41: =50*1.1494 -> 57.47 | I41: 57.47 | J41: 57.47 | K41: 57.47 | L41: 57.47
E42: IVA (14.49%) | G42: =(G41)*0% -> 0 | H42: =(H41)*0% -> 0 | I42: 0 | J42: =(J41)*0% -> 0 | K42: =(K41)*0% -> 0
E43: TOTAL de primera cuota | G43: =SUM(G40:G42) -> 3803.272648 | H43: =SUM(H40:H42) -> 3317.881028 | I43: 3029.01382 | J43: =SUM(J40:J42) -> 2368.999605 | K43: =SUM(K40:K42) -> 1787.713543 | L43: =SUM(L40:L42) -> 1518.972329
E44: Costo de segunda cuota | G44: =G40+G42 -> 3745.802648 | H44: =H40+H42 -> 3260.411028 | I44: 2971.54382 | J44: =J40+J42 -> 2311.529605 | K44: =K40+K42 -> 1730.243543 | L44: =L40+L42 -> 1461.502329
E45: TOTAL ANUAL | G45: =G43+G44 -> 7549.075296 | H45: =H43+H44 -> 6578.292056 | I45: 6000.55764 | J45: =J43+J44 -> 4680.52921 | K45: 3517.957086 | L45: 2980.474658
E47: Tarifas Trimestrales
E48: Prima para Asegurado Titular | G48: =(VLOOKUP($K$15,Tablas!$A$830:$H$896,3,TRUE))*1.1494 -> 591.5530775 | H48: =(VLOOKUP($K$15,Tablas!$A$830:$H$896,4,TRUE))*1.1494 -> 514.9814862 | I48: =(VLOOKUP($K$15,Tablas!$A$830:$H$896,5,TRUE))*1.1494 -> 469.0385315 | J48: =(VLOOKUP($K$15,Tablas!$A$830:$H$896,6,TRUE))*1.1494 -> 387.0618867 | K48: =(VLOOKUP($K$15,Tablas!$A$830:$H$896,7,TRUE))*1.1494 -> 284.0655895 | L48: =(VLOOKUP($K$15,Tablas!$A$830:$H$896,8,TRUE))*1.1494 -> 239.6240385
E49: Prima para conyuge | G49: =(IF($F$15=1,0,(VLOOKUP($K$17,Tablas!$A$830:$H$896,3,TRUE))))*1.1494 -> 904.445619 | H49: =(IF($F$15=1,0,(VLOOKUP($K$17,Tablas!$A$830:$H$896,4,TRUE))))*1.1494 -> 787.0358457 | I49: =(IF($F$15=1,0,(VLOOKUP($K$17,Tablas!$A$830:$H$896,5,TRUE))))*1.1494 -> 717.9712732 | J49: =(IF($F$15=1,0,(VLOOKUP($K$17,Tablas!$A$830:$H$896,6,TRUE))))*1.1494 -> 618.2780642 | K49: =(IF($F$15=1,0,(VLOOKUP($K$17,Tablas!$A$830:$H$896,7,TRUE))))*1.1494 -> 445.9169137 | L49: =(IF($F$15=1,0,(VLOOKUP($K$17,Tablas!$A$830:$H$896,8,TRUE))))*1.1494 -> 376.5520605
E50: Prima para hijo (s) | G50: =(IF($F$17=0,0,(VLOOKUP($F$17,Tablas!$A$897:$H$899,3,TRUE))))*1.1494 -> 404.1778895 | H50: =(IF($F$17=0,0,(VLOOKUP($F$17,Tablas!$A$897:$H$899,4,TRUE))))*1.1494 -> 351.929039 | I50: =(IF($F$17=0,0,(VLOOKUP($F$17,Tablas!$A$897:$H$899,5,TRUE))))*1.1494 -> 320.3995602 | J50: =(IF($F$17=0,0,(VLOOKUP($F$17,Tablas!$A$897:$H$899,6,TRUE))))*1.1494 -> 167.2563777 | K50: =(IF($F$17=0,0,(VLOOKUP($F$17,Tablas!$A$897:$H$899,7,TRUE))))*1.1494 -> 147.738129 | L50: =(IF($F$17=0,0,(VLOOKUP($F$17,Tablas!$A$897:$H$899,8,TRUE))))*1.1494 -> 125.2170727
E51: Total de Prima neta | G51: =(SUM(G48:G50)) -> 1900.176586 | H51: =(SUM(H48:H50)) -> 1653.946371 | I51: 1507.409365 | J51: =(SUM(J48:J50)) -> 1172.596329 | K51: =(SUM(K48:K50)) -> 877.7206322 | L51: =(SUM(L48:L50)) -> 741.3931717
E52: Costo Administrativo Anual | G52: =50*1.1494 -> 57.47 | H52: =50*1.1494 -> 57.47 | I52: 57.47 | J52: 57.47 | K52: 57.47 | L52: 57.47
E53: IVA (14.49%) | G53: =(G52)*0% -> 0 | H53: =(H52)*0% -> 0 | I53: 0 | J53: =(J52)*0% -> 0 | K53: =(K52)*0% -> 0 | L53: =(L52)*0% -> 0
E55: TOTAL de primera cuota | G55: =SUM(G51:G53) -> 1957.646586 | H55: =SUM(H51:H53) -> 1711.416371 | I55: 1564.879365 | J55: =SUM(J51:J53) -> 1230.066329 | K55: =SUM(K51:K53) -> 935.1906322 | L55: =SUM(L51:L53) -> 798.8631717
E56: Tres (3) cuotas adicionales, cada una de: | G56: =G51+G53 -> 1900.176586 | H56: =H51+H53 -> 1653.946371 | I56: 1507.409365 | J56: =J51+J53 -> 1172.596329 | K56: =K51+K53 -> 877.7206322 | L56: =L51+L53 -> 741.3931717
E57: TOTAL ANUAL | G57: =G55+(G56*3) -> 7658.176344 | H57: =H55+(H56*3) -> 6673.255484 | I57: 6087.10746 | J57: =J55+(J56*3) -> 4747.855315 | K57: 3568.352529 | L57: =L55+(L56*3) -> 3023.042687
E60: Tarifas Mensuales
E61: Prima para Asegurado Titular | G61: =(VLOOKUP($K$15,Tablas!$A$379:$H$445,3,TRUE))*1.1494 -> 200.0147567 | H61: =(VLOOKUP($K$15,Tablas!$A$379:$H$445,4,TRUE))*1.1494 -> 174.1245217 | I61: =(VLOOKUP($K$15,Tablas!$A$379:$H$445,5,TRUE))*1.1494 -> 158.5903807 | J61: =(VLOOKUP($K$15,Tablas!$A$379:$H$445,6,TRUE))*1.1494 -> 130.8725997 | K61: =(VLOOKUP($K$15,Tablas!$A$379:$H$445,7,TRUE))*1.1494 -> 96.04769533 | L61: =(VLOOKUP($K$15,Tablas!$A$379:$H$445,8,TRUE))*1.1494 -> 81.021206
E62: Prima para conyuge | G62: =(IF($F$15=1,0,(VLOOKUP($K$17,Tablas!$A$379:$H$445,3,TRUE))))*1.1494 -> 305.809364 | H62: =(IF($F$15=1,0,(VLOOKUP($K$17,Tablas!$A$379:$H$445,4,TRUE))))*1.1494 -> 266.1110037 | I62: =(IF($F$15=1,0,(VLOOKUP($K$17,Tablas!$A$379:$H$445,5,TRUE))))*1.1494 -> 242.759027 | J62: =(IF($F$15=1,0,(VLOOKUP($K$17,Tablas!$A$379:$H$445,6,TRUE))))*1.1494 -> 209.0509563 | K62: =(IF($F$15=1,0,(VLOOKUP($K$17,Tablas!$A$379:$H$445,7,TRUE))))*1.1494 -> 150.772545 | L62: =(IF($F$15=1,0,(VLOOKUP($K$17,Tablas!$A$379:$H$445,8,TRUE))))*1.1494 -> 127.319038
E63: Prima para hijo (s) | G63: =(IF($F$17=0,0,(VLOOKUP($F$17,Tablas!$A$446:$H$448,3,TRUE))))*1.1494 -> 136.6598287 | H63: =(IF($F$17=0,0,(VLOOKUP($F$17,Tablas!$A$446:$H$448,4,TRUE))))*1.1494 -> 118.9935507 | I63: =(IF($F$17=0,0,(VLOOKUP($F$17,Tablas!$A$446:$H$448,5,TRUE))))*1.1494 -> 108.3328657 | J63: =(IF($F$17=0,0,(VLOOKUP($F$17,Tablas!$A$446:$H$448,6,TRUE))))*1.1494 -> 56.55239567 | K63: =(IF($F$17=0,0,(VLOOKUP($F$17,Tablas!$A$446:$H$448,7,TRUE))))*1.1494 -> 49.952924 | L63: =(IF($F$17=0,0,(VLOOKUP($F$17,Tablas!$A$446:$H$448,8,TRUE))))*1.1494 -> 42.338149
E64: Total de Prima neta | G64: =(SUM(G61:G63)) -> 642.4839493 | H64: =(SUM(H61:H63)) -> 559.229076 | I64: 509.6822733 | J64: =(SUM(J61:J63)) -> 396.4759517 | K64: =(SUM(K61:K63)) -> 296.7731643 | L64: =(SUM(L61:L63)) -> 250.678393
E65: Costo Administrativo Anual | G65: =50*1.1494 -> 57.47 | H65: =50*1.1494 -> 57.47 | I65: 57.47 | J65: 57.47 | K65: 57.47 | L65: 57.47
E66: IVA (14.49%) | G66: =(G65)*0% -> 0 | H66: =(H65)*0% -> 0 | I66: 0 | J66: =(J65)*0% -> 0 | K66: =(K65)*0% -> 0 | L66: =(L65)*0% -> 0
E68: TOTAL de primera cuota | G68: =SUM(G64:G66) -> 699.9539493 | H68: =SUM(H64:H66) -> 616.699076 | I68: 567.1522733 | J68: =SUM(J64:J66) -> 453.9459517 | K68: =SUM(K64:K66) -> 354.2431643 | L68: =SUM(L64:L66) -> 308.148393
E69: Once (11) cuotas mensuales cada una de: | G69: =G64+G66 -> 642.4839493 | H69: =H64+H66 -> 559.229076 | I69: 509.6822733 | J69: =J64+J66 -> 396.4759517 | K69: =K64+K66 -> 296.7731643 | L69: =L64+L66 -> 250.678393
E70: TOTAL ANUAL | G70: =G68+(G69*11) -> 7767.277392 | H70: =H68+(H69*11) -> 6768.218912 | I70: 6173.65728 | J70: =J68+(J69*11) -> 4815.18142 | K70: =K68+(K69*11) -> 3618.747972 | L70: =L68+(L69*11) -> 3065.610716
E72: Tarifas en US$ - Efectivas a partir del 1ro. de enero de 2023
E73: Este presupuesto solamente tiene carácter informativo y en ningún momento expresa compromiso legal para suministrarle cobertura de seguro. La emisión de una póliza de seguro Bupa está sujeta a todas las evaluaciones de riesgo por parte de Bupa y a la recepción de todos los pagos de prima requeridos.

Sheet Resumen tarifas
A20: Cotización de Seguro Médico - Bupa Essential Flex Plan
A22: Nombre del Asegurado Titular | C22: =+'INGRESO DE DATOS'!$D$15 -> JOHN DOE
B23: Cotizado por | C23: =+'INGRESO DE DATOS'!$D$21 -> NOMBRE DE AGENTE
A25: Número de adultos en la póliza | C25: =+'INGRESO DE DATOS'!$D$17 -> 2 | E25: Edad del Asegurado Titular | G25: =+'INGRESO DE DATOS'!$D$19 -> 32
A28: Número de niños en la póliza | C28: =+'INGRESO DE DATOS'!$H$17 -> 2 | E28: Edad del/la cónyuge | G28: =+'INGRESO DE DATOS'!$H$19 -> 46
C31: Fecha de la Cotización: | D31: =NOW() -> 2023-02-24T15:12:22.900
A34: BUPA ESSENTIAL FLEX 1
A35: DEDUCIBLES | E35: PLAN 1 | F35: PLAN 2 | G35: PLAN 3 | H35: PLAN 4 | I35: PLAN 5 | J35: PLAN 6
A36: En el país de residencia | E36: 250 | F36: 500 | G36: 1000 | H36: 2000 | I36: 5000 | J36: 10000
A37: Fuera del país de residencia | E37: 500 | F37: 1000 | G37: 2000 | H37: 4000 | I37: 5000 | J37: 10000
E38: Tarifas Anuales
E39: =+'Bupa Essential Flex 1'!G32 -> 9148.0746 | F39: =+'Bupa Essential Flex 1'!H32 -> 7967.6408 | G39: =+'Bupa Essential Flex 1'!I32 -> 7269.955 | H39: =+'Bupa Essential Flex 1'!J32 -> 5666.542 | I39: =+'Bupa Essential Flex 1'!K32 -> 4260.8258 | J39: =+'Bupa Essential Flex 1'!L32 -> 3605.6678
E40: Tarifas Semi-anuales
D41: Primer Pago | E41: =+'Bupa Essential Flex 1'!G41 -> 4739.131369 | F41: =+'Bupa Essential Flex 1'!H41 -> 4131.207962 | G41: =+'Bupa Essential Flex 1'!I41 -> 3771.899775 | H41: =+'Bupa Essential Flex 1'!J41 -> 2946.14208 | I41: =+'Bupa Essential Flex 1'!K41 -> 2222.198237 | J41: =+'Bupa Essential Flex 1'!L41 -> 1884.791867
D42: Segunda cuota | E42: =+'Bupa Essential Flex 1'!G42 -> 4681.661369 | F42: =+'Bupa Essential Flex 1'!H42 -> 4073.737962 | G42: =+'Bupa Essential Flex 1'!I42 -> 3714.429775 | H42: =+'Bupa Essential Flex 1'!J42 -> 2888.67208 | I42: =+'Bupa Essential Flex 1'!K42 -> 2164.728237 | J42: =+'Bupa Essential Flex 1'!L42 -> 1827.321867
E43: Tarifas Trimestrales
D44: Primer Pago | E44: =+'Bupa Essential Flex 1'!G53 -> 2432.390452 | F44: =+'Bupa Essential Flex 1'!H53 -> 2124.002121 | G44: =+'Bupa Essential Flex 1'!I53 -> 1941.731706 | H44: =+'Bupa Essential Flex 1'!J53 -> 1522.84006 | I44: =+'Bupa Essential Flex 1'!K53 -> 1155.596703 | J44: =+'Bupa Essential Flex 1'!L53 -> 984.4366753
D45: Tres cuotas c/u de | E45: =+'Bupa Essential Flex 1'!G54 -> 2374.920452 | F45: =+'Bupa Essential Flex 1'!H54 -> 2066.532121 | G45: =+'Bupa Essential Flex 1'!I54 -> 1884.261706 | H45: =+'Bupa Essential Flex 1'!J54 -> 1465.37006 | I45: =+'Bupa Essential Flex 1'!K54 -> 1098.126703 | J45: =+'Bupa Essential Flex 1'!L54 -> 926.9666752
E46: Tarifas Mensuales
D47: Primer Pago | E47: =+'Bupa Essential Flex 1'!G66 -> 860.4734063 | F47: =+'Bupa Essential Flex 1'!H66 -> 756.201754 | G47: =+'Bupa Essential Flex 1'!I66 -> 694.5728417 | H47: =+'Bupa Essential Flex 1'!J66 -> 552.9380267 | I47: =+'Bupa Essential Flex 1'!K66 -> 428.766429 | J47: =+'Bupa Essential Flex 1'!L66 -> 370.894139
D48: Once cuotas c/u de | E48: =+'Bupa Essential Flex 1'!G67 -> 803.0034063 | F48: =+'Bupa Essential Flex 1'!H67 -> 698.731754 | G48: =+'Bupa Essential Flex 1'!I67 -> 637.1028417 | H48: =+'Bupa Essential Flex 1'!J67 -> 495.4680267 | I48: =+'Bupa Essential Flex 1'!K67 -> 371.296429 | J48: =+'Bupa Essential Flex 1'!L67 -> 313.424139
A50: BUPA ESSENTIAL FLEX 2
A51: DEDUCIBLES | E51: PLAN 1 | F51: PLAN 2 | G51: PLAN 3 | H51: PLAN 4 | I51: PLAN 5 | J51: PLAN 6
A52: En el país de residencia | E52: 250 | F52: 500 | G52: 1000 | H52: 2000 | I52: 5000 | J52: 10000
A53: Fuera del país de residencia | E53: 500 | F53: 1000 | G53: 2000 | H53: 4000 | I53: 5000 | J53: 10000
E54: Tarifas Anuales
E55: =+'Bupa Essential Flex 2'!G34 -> 7330.8732 | F55: =+'Bupa Essential Flex 2'!H34 -> 6388.3652 | G55: =+'Bupa Essential Flex 2'!I34 -> 5827.458 | H55: =+'Bupa Essential Flex 2'!J34 -> 4545.877 | I55: =+'Bupa Essential Flex 2'!K34 -> 3417.1662 | J55: =+'Bupa Essential Flex 2'!L34 -> 2895.3386
E56: Tarifas Semi-anuales
D57: Primer Pago | E57: =+'Bupa Essential Flex 2'!G43 -> 3803.272648 | F57: =+'Bupa Essential Flex 2'!H43 -> 3317.881028 | G57: =+'Bupa Essential Flex 2'!I43 -> 3029.01382 | H57: =+'Bupa Essential Flex 2'!J43 -> 2368.999605 | I57: =+'Bupa Essential Flex 2'!K43 -> 1787.713543 | J57: =+'Bupa Essential Flex 2'!L43 -> 1518.972329
D58: Segunda cuota | E58: =+'Bupa Essential Flex 2'!G44 -> 3745.802648 | F58: =+'Bupa Essential Flex 2'!H44 -> 3260.411028 | G58: =+'Bupa Essential Flex 2'!I44 -> 2971.54382 | H58: =+'Bupa Essential Flex 2'!J44 -> 2311.529605 | I58: =+'Bupa Essential Flex 2'!K44 -> 1730.243543 | J58: =+'Bupa Essential Flex 2'!L44 -> 1461.502329
E59: Tarifas Trimestrales
D60: Primer Pago | E60: =+'Bupa Essential Flex 2'!G55 -> 1957.646586 | F60: =+'Bupa Essential Flex 2'!H55 -> 1711.416371 | G60: =+'Bupa Essential Flex 2'!I55 -> 1564.879365 | H60: =+'Bupa Essential Flex 2'!J55 -> 1230.066329 | I60: =+'Bupa Essential Flex 2'!K55 -> 935.1906322 | J60: =+'Bupa Essential Flex 2'!L55 -> 798.8631717
D61: Tres cuotas c/u de | E61: =+'Bupa Essential Flex 2'!G56 -> 1900.176586 | F61: =+'Bupa Essential Flex 2'!H56 -> 1653.946371 | G61: =+'Bupa Essential Flex 2'!I56 -> 1507.409365 | H61: =+'Bupa Essential Flex 2'!J56 -> 1172.596329 | I61: =+'Bupa Essential Flex 2'!K56 -> 877.7206322 | J61: =+'Bupa Essential Flex 2'!L56 -> 741.3931717
E62: Tarifas Mensuales
D63: Primer Pago | E63: =+'Bupa Essential Flex 2'!G68 -> 699.9539493 | F63: =+'Bupa Essential Flex 2'!H68 -> 616.699076 | G63: =+'Bupa Essential Flex 2'!I68 -> 567.1522733 | H63: =+'Bupa Essential Flex 2'!J68 -> 453.9459517 | I63: =+'Bupa Essential Flex 2'!K68 -> 354.2431643 | J63: =+'Bupa Essential Flex 2'!L68 -> 308.148393
D64: Once cuotas c/u de | E64: =+'Bupa Essential Flex 2'!G69 -> 642.4839493 | F64: =+'Bupa Essential Flex 2'!H69 -> 559.229076 | G64: =+'Bupa Essential Flex 2'!I69 -> 509.6822733 | H64: =+'Bupa Essential Flex 2'!J69 -> 396.4759517 | I64: =+'Bupa Essential Flex 2'!K69 -> 296.7731643 | J64: =+'Bupa Essential Flex 2'!L69 -> 250.678393
A67: Notas:
A68: Primas anuales incluyen US$57.47 por Costo Administrativo Anual
A69: Costo administrativo anual incluido en el primer pago de los pagos semestrales, trimestrales y mensuales
A70: *Basado en un modo de pago anual
A72: Tarifas en US$ - Efectivas a partir del 1ro. de enero de 2023
A73: Este presupuesto solamente tiene carácter informativo y en ningún momento expresa compromiso legal para suministrarle cobertura de seguro. La emisión de una póliza de seguro Bupa está sujeta a todas las evaluaciones de riesgo por parte de Bupa y a la recepción de todos los pagos de prima requeridos.

Sheet Tablas (hidden)
A2: BUPA GLOBAL ELITE | J2: FACTOR MENSUAL: | L2: =1.06/12 -> 0.08833333333
A3: TARIFAS ANUALES | J3: FACTOR TRIMESTRAL: | L3: 0.26125
A4: EDAD | J4: FACTOR SEMIANUAL: | L4: 0.515
C5: 250 | F5: 2000 | G5: 3500 | H5: 5000
A6: 18
A7: 19
A8: 20
A9: 21
A10: 22
A11: 23
A12: 24
A13: 25
A14: 26
A15: 27
A16: 28
A17: 29
A18: 30
A19: 31
A20: 32
A21: 33
A22: 34
A23: 35
A24: 36
A25: 37
A26: 38
A27: 39
A28: 40
A29: 41
A30: 42
A31: 43
A32: 44
A33: 45
A34: 46
A35: 47
A36: 48
A37: 49
A38: 50
A39: 51
A40: 52
A41: 53
A42: 54
A43: 55
A44: 56
A45: 57
A46: 58
A47: 59
A48: 60
A49: 61
A50: 62
A51: 63
A52: 64
A53: 65
A54: 66
A55: 67
A56: 68
A57: 69
A58: 70
A59: 71
A60: 72
A61: 73
A62: 74
A63: 75
A64: 76
A65: 77
A66: 78
A67: 79
A68: 80
A69: 81
A70: 82
A71: 83
A72: 84 | B72: o más
A73: 1 | B73: Hijo
A74: 2 | B74: Hijos
A75: 3 | B75: Hijos o más
A77: BUPA GLOBAL ELITE - MENSUALES
A78: EDAD
C79: 1000 | F79: 2000 | G79: 3500
A80: 18
A81: 19
A82: 20
A83: 21
A84: 22
A85: 23
A86: 24
A87: 25
A88: 26
A89: 27
A90: 28
A91: 29
A92: 30
A93: 31
A94: 32
A95: 33
A96: 34
A97: 35
A98: 36
A99: 37
A100: 38
A101: 39
A102: 40
A103: 41
A104: 42
A105: 43
A106: 44
A107: 45
A108: 46
A109: 47
A110: 48
A111: 49
A112: 50
A113: 51
A114: 52
A115: 53
A116: 54
A117: 55
A118: 56
A119: 57
A120: 58
A121: 59
A122: 60
A123: 61
A124: 62
A125: 63
A126: 64
A127: 65
A128: 66
A129: 67
A130: 68
A131: 69
A132: 70
A133: 71
A134: 72
A135: 73
A136: 74
A137: 75
A138: 76
A139: 77
A140: 78
A141: 79
A142: 80
A143: 81
A144: 82
A145: 83
A146: 84 | B146: o más
A147: 1 | B147: Hijo
A148: 2 | B148: Hijos
A149: 3 | B149: Hijos o más
A151: BUPA ESSENTIAL FLEX 1
A152: TARIFAS ANUALES
A153: EDAD
C154: 250 | D154: 500 | E154: 1000 | F154: 2000 | G154: 5000 | H154: 10000
A155: 18 | C155: 1952 | D155: 1698 | E155: 1547 | F155: 1196 | G155: 912 | H155: 770
A156: 19 | C156: 1983 | D156: 1727 | E156: 1576 | F156: 1221 | G156: 928 | H156: 783
A157: 20 | C157: 2020 | D157: 1755 | E157: 1600 | F157: 1250 | G157: 946 | H157: 798
A158: 21 | C158: 2051 | D158: 1786 | E158: 1626 | F158: 1275 | G158: 963 | H158: 812
A159: 22 | C159: 2086 | D159: 1818 | E159: 1654 | F159: 1300 | G159: 980 | H159: 827
A160: 23 | C160: 2122 | D160: 1846 | E160: 1684 | F160: 1331 | G160: 999 | H160: 843
A161: 24 | C161: 2158 | D161: 1877 | E161: 1712 | F161: 1358 | G161: 1016 | H161: 857
A162: 25 | C162: 2190 | D162: 1904 | E162: 1739 | F162: 1385 | G162: 1036 | H162: 875
A163: 26 | C163: 2225 | D163: 1936 | E163: 1766 | F163: 1415 | G163: 1054 | H163: 890
A164: 27 | C164: 2262 | D164: 1966 | E164: 1793 | F164: 1437 | G164: 1070 | H164: 903
A165: 28 | C165: 2302 | D165: 2002 | E165: 1824 | F165: 1474 | G165: 1095 | H165: 923
A166: 29 | C166: 2344 | D166: 2038 | E166: 1858 | F166: 1506 | G166: 1115 | H166: 941
A167: 30 | C167: 2384 | D167: 2070 | E167: 1888 | F167: 1540 | G167: 1140 | H167: 962
A168: 31 | C168: 2423 | D168: 2111 | E168: 1923 | F168: 1576 | G168: 1160 | H168: 978
A169: 32 | C169: 2463 | D169: 2144 | E169: 1953 | F169: 1612 | G169: 1184 | H169: 1000
A170: 33 | C170: 2530 | D170: 2201 | E170: 2009 | F170: 1660 | G170: 1222 | H170: 1032
A171: 34 | C171: 2597 | D171: 2262 | E171: 2062 | F171: 1706 | G171: 1254 | H171: 1058
A172: 35 | C172: 2667 | D172: 2319 | E172: 2115 | F172: 1756 | G172: 1290 | H172: 1088
A173: 36 | C173: 2732 | D173: 2380 | E173: 2168 | F173: 1806 | G173: 1325 | H173: 1119
A174: 37 | C174: 2799 | D174: 2435 | E174: 2223 | F174: 1857 | G174: 1359 | H174: 1146
A175: 38 | C175: 2870 | D175: 2494 | E175: 2277 | F175: 1910 | G175: 1394 | H175: 1175
A176: 39 | C176: 2937 | D176: 2555 | E176: 2330 | F176: 1962 | G176: 1430 | H176: 1206
A177: 40 | C177: 3012 | D177: 2616 | E177: 2384 | F177: 2013 | G177: 1466 | H177: 1236
A178: 41 | C178: 3180 | D178: 2764 | E178: 2524 | F178: 2135 | G178: 1549 | H178: 1307
A179: 42 | C179: 3252 | D179: 2826 | E179: 2576 | F179: 2189 | G179: 1585 | H179: 1338
A180: 43 | C180: 3379 | D180: 2941 | E180: 2681 | F180: 2286 | G180: 1656 | H180: 1398
A181: 44 | C181: 3508 | D181: 3050 | E181: 2782 | F181: 2380 | G181: 1723 | H181: 1454
A182: 45 | C182: 3639 | D182: 3162 | E182: 2885 | F182: 2478 | G182: 1789 | H182: 1510
A183: 46 | C183: 3766 | D183: 3275 | E183: 2988 | F183: 2573 | G183: 1857 | H183: 1567
A184: 47 | C184: 3894 | D184: 3387 | E184: 3089 | F184: 2670 | G184: 1924 | H184: 1624
A185: 48 | C185: 4033 | D185: 3506 | E185: 3197 | F185: 2773 | G185: 1993 | H185: 1682
A186: 49 | C186: 4172 | D186: 3627 | E186: 3306 | F186: 2872 | G186: 2064 | H186: 1741
A187: 50 | C187: 4306 | D187: 3745 | E187: 3412 | F187: 2974 | G187: 2133 | H187: 1802
A188: 51 | C188: 4585 | D188: 3988 | E188: 3636 | F188: 3175 | G188: 2278 | H188: 1920
A189: 52 | C189: 4725 | D189: 4108 | E189: 3748 | F189: 3275 | G189: 2349 | H189: 1982
A190: 53 | C190: 4895 | D190: 4258 | E190: 3881 | F190: 3407 | G190: 2436 | H190: 2055
A191: 54 | C191: 5064 | D191: 4400 | E191: 4015 | F191: 3532 | G191: 2523 | H191: 2129
A192: 55 | C192: 5227 | D192: 4548 | E192: 4144 | F192: 3659 | G192: 2610 | H192: 2203
A193: 56 | C193: 5396 | D193: 4690 | E193: 4278 | F193: 3785 | G193: 2699 | H193: 2276
A194: 57 | C194: 5562 | D194: 4836 | E194: 4410 | F194: 3911 | G194: 2783 | H194: 2348
A195: 58 | C195: 5755 | D195: 5004 | E195: 4550 | F195: 4080 | G195: 2895 | H195: 2443
A196: 59 | C196: 5947 | D196: 5173 | E196: 4688 | F196: 4245 | G196: 3002 | H196: 2532
A197: 60 | C197: 6139 | D197: 5338 | E197: 4827 | F197: 4410 | G197: 3115 | H197: 2627
A198: 61 | C198: 6471 | D198: 5628 | E198: 5115 | F198: 4644 | G198: 3282 | H198: 2769
A199: 62 | C199: 6767 | D199: 5882 | E199: 5363 | F199: 4857 | G199: 3427 | H199: 2890
A200: 63 | C200: 7110 | D200: 6185 | E200: 5639 | F200: 5106 | G200: 3608 | H200: 3044
A201: 64 | C201: 7520 | D201: 6542 | E201: 5966 | F201: 5397 | G201: 3815 | H201: 3219
A202: 65 | C202: 8014 | D202: 6967 | E202: 6352 | F202: 5801 | G202: 4082 | H202: 3445
A203: 66 | C203: 8590 | D203: 7472 | E203: 6811 | F203: 6265 | G203: 4401 | H203: 3713
... 1275 more rows
